bitfinex/quotes_ETHUSD_20250823
["timestamp","ask_amount","ask_price","bid_price","bid_amount"]
[1755959700290,0.1048,4760.4,4760.3,5.19129165]
[1755959700522,0.1048,4760.4,4760.3,7.29199958]
[1755959700724,0.1048,4760.4,4760.3,0.2955]
[1755959701025,0.4203,4760.4,4760.3,3.591]
[1755959701230,0.4203,4760.4,4760.3,0.001]
[1755959701431,1.5489,4760.4,4760.3,0.001]
[1755959701723,1.63311,4760.4,4760.3,0.001]
[1755959701925,5.08586185,4760.4,4760.3,0.001]
[1755959702130,2.08586185,4760.4,4760.3,0.001]
[1755959702630,1.63311,4760.4,4760.3,0.001]
[1755959702843,2.08586185,4760.4,4760.3,0.001]
[1755959703046,1.63311,4760.4,4760.3,0.001]
[1755959703713,2.08586185,4760.4,4760.3,0.001]
[1755959703916,1.79447614,4760.4,4760.3,0.001]
[1755959704301,2.08586185,4760.4,4760.3,0.001]
[1755959704502,1.63311,4760.4,4760.3,0.001]
[1755959706929,5.28232024,4760.4,4760.3,0.001]
[1755959707329,2.08586185,4760.4,4760.3,0.001]
[1755959707511,2.28227354,4760.4,4760.3,0.001]
[1755959707711,2.08586185,4760.4,4760.3,0.001]
[1755959708037,8.67586185,4760.4,4760.3,0.001]
[1755959710123,10.77652565,4760.4,4760.3,0.001]
[1755959710327,11.53711765,4760.4,4760.3,0.001]
[1755959710521,10.97289081,4760.4,4760.3,0.001]
[1755959711041,11.84543857,4760.4,4760.3,0.001]
[1755959711269,11.72762985,4760.4,4760.3,0.001]
[1755959711635,8.87222701,4760.4,4760.3,0.001]
[1755959711849,10.97489081,4760.4,4760.3,0.001]
[1755959712747,8.87422701,4760.4,4760.3,0.001]
[1755959713156,10.97489081,4760.4,4760.3,0.001]
[1755959713731,17.97489081,4760.4,4760.3,0.001]
[1755959714041,18.30366944,4760.4,4760.3,0.001]
[1755959714634,19.17613254,4760.4,4760.3,0.001]
[1755959715454,18.86204332,4760.4,4760.3,0.001]
[1755959715762,4.02484033,4760.0,4759.9,0.001]
[1755959715940,14.17113626,4760.0,4759.9,0.001]
[1755959716142,13.88638149,4760.0,4759.9,0.001]
[1755959716455,14.63946174,4760.0,4759.9,0.001]
[1755959716859,14.63946174,4760.0,4759.3,0.001]
[1755959716860,2.10099594,4759.7,4759.3,0.001]
[1755959717061,14.38174163,4759.5,4759.3,0.001]
[1755959717361,18.13524028,4759.5,4759.3,0.001]
[1755959717751,17.73203336,4759.5,4759.3,0.001]
[1755959719271,18.29653115,4759.5,4759.3,0.001]
[1755959719480,17.73203336,4759.5,4759.3,0.001]
[1755959720336,18.29649528,4759.5,4759.3,0.001]
[1755959720670,17.81627936,4759.5,4759.3,0.001]
[1755959721028,1.924,4759.2,4758.8,0.02]
[1755959721365,19.29158355,4758.9,4758.8,0.02]
[1755959721561,52.51915581,4758.9,4758.8,0.02]
[1755959721872,52.70355581,4758.9,4758.8,0.02]
[1755959722357,53.03245908,4758.9,4758.8,0.02]
[1755959722933,23.03245908,4758.9,4758.8,0.02]
[1755959723527,2.76176758,4757.9,4757.8,0.02]
[1755959723727,11.81761943,4757.9,4757.8,0.02]
[1755959724156,12.26291943,4757.9,4757.8,0.02]
[1755959724434,12.59184956,4757.9,4757.8,0.02]
[1755959725147,13.03724956,4757.9,4757.8,0.02]
[1755959725355,14.49710768,4757.9,4757.8,0.02]
[1755959725946,14.60393866,4757.9,4757.8,0.02]
[1755959726144,15.35628302,4757.9,4757.8,0.02]
[1755959726671,14.60393866,4757.9,4757.8,0.02]
[1755959726869,2.76212104,4757.1,4757.0,0.001]
[1755959727049,27.3492977,4757.1,4756.8,0.02]
[1755959727255,7.13100942,4756.9,4756.8,0.02]
[1755959727440,11.66189831,4756.9,4756.8,0.02]
[1755959727637,1.924,4756.2,4754.5,0.001]
[1755959727958,22.59665655,4756.2,4755.0,0.4463]
[1755959728155,23.4948084,4756.2,4755.0,0.001]
[1755959728375,3.66,4755.8,4755.0,0.001]
[1755959728580,16.79537185,4755.6,4755.0,0.001]
[1755959728865,17.2481237,4755.6,4755.0,0.001]
[1755959730075,17.6935237,4755.6,4755.0,0.001]
[1755959730453,6.21553593,4755.6,4755.5,0.3012]
[1755959730667,6.50783593,4755.6,4755.5,0.001]
[1755959731266,2.76300519,4755.1,4755.0,0.001]
[1755959731479,2.76300519,4755.1,4754.5,0.001]
[1755959731480,3.66,4754.8,4754.5,0.001]
[1755959731681,12.97923396,4754.7,4754.5,0.001]
[1755959731848,11.79957196,4754.7,4754.5,0.001]
[1755959732044,12.24497196,4754.7,4754.5,0.001]
[1755959732381,0.66,4754.0,4752.9,0.4453]
[1755959732680,2.76397862,4752.9,4752.5,0.4453]
[1755959732978,11.42373047,4752.9,4752.8,0.2202]
[1755959733302,2.76433282,4752.1,4752.0,0.4453]
[1755959733448,9.35433282,4752.1,4752.0,0.7455]
[1755959733876,9.80321189,4752.1,4752.0,0.3002]
[1755959734284,9.45909673,4752.1,4752.0,0.3002]
[1755959734581,9.45909673,4752.1,4752.0,0.7455]
[1755959734760,9.78842179,4752.1,4752.0,0.7455]
[1755959735178,9.78842179,4752.1,4752.0,0.3002]
[1755959735365,10.2362445,4752.1,4752.0,0.3002]
[1755959735875,10.2362445,4752.1,4752.0,0.7455]
[1755959736211,2.76442138,4751.9,4750.8,0.02]
[1755959736484,11.71254409,4751.9,4750.8,0.4653]
[1755959736790,5.76446567,4751.8,4750.8,0.02]
[1755959737087,2.76486434,4750.9,4750.8,0.02]
[1755959737282,10.97286434,4750.9,4750.8,0.02]
[1755959737497,11.26516434,4750.9,4750.8,0.02]
[1755959737784,11.81782086,4750.9,4750.8,0.02]
[1755959738858,0.66,4750.5,4749.8,0.02]
[1755959739057,2.87090748,4749.9,4749.8,0.02]
[1755959739251,11.08090748,4749.9,4749.8,0.3202]
[1755959739451,11.08090748,4749.9,4749.8,0.7655]
[1755959740313,11.08090748,4749.9,4748.8,0.02]
[1755959740314,3.0,4749.8,4748.8,0.02]
[1755959740587,2.7657508,4748.9,4748.8,0.02]
[1755959740786,10.9757508,4748.9,4748.8,0.7655]
[1755959740998,11.2680508,4748.9,4748.8,0.02]
[1755959741153,12.16035628,4748.9,4748.8,0.02]
[1755959741363,3.66,4748.3,4747.8,0.01170023]
[1755959741593,6.05849431,4747.9,4747.8,0.01170023]
[1755959741794,5.72390548,4747.9,4747.8,0.31190023]
[1755959741980,8.873,4747.9,4747.8,0.31190023]
[1755959742184,10.97919431,4747.9,4747.8,0.01170023]
[1755959742514,7.71380677,4747.9,4747.8,0.31190023]
[1755959742663,9.20361246,4747.9,4747.8,0.31190023]
[1755959742860,5.60761246,4747.9,4747.8,0.75720023]
[1755959743192,8.54661246,4747.9,4747.8,0.75720023]
[1755959743367,4.94761246,4747.9,4747.8,0.75720023]
[1755959743706,1.618,4747.9,4747.8,0.75720023]
[1755959744001,5.881,4747.9,4747.8,0.31190023]
[1755959744303,5.224,4747.9,4747.8,0.75720023]
[1755959744601,0.32957823,4748.3,4747.9,2.10619431]
[1755959744770,1.619,4749.9,4748.2,0.3002]
[1755959744976,1.619,4749.9,4748.3,2.55131689]
[1755959745292,1.619,4749.9,4748.4,0.4453]
[1755959745293,4.252947,4749.8,4748.4,0.4453]
[1755959745499,3.62,4749.8,4749.7,0.3002]
[1755959745667,6.62,4749.8,4749.7,0.3002]
[1755959745868,6.62,4749.8,4749.7,0.7455]
[1755959746264,1.619,4749.9,4749.7,0.7455]
[1755959746468,3.618,4750.5,4749.8,0.4453]
[1755959746763,3.0,4750.3,4749.8,0.4453]
[1755959746975,1.619,4750.8,4749.9,2.1053039]
[1755959746976,3.619,4750.2,4749.9,2.1053039]
[1755959747184,3.619,4750.2,4748.9,2.10574753]
[1755959747185,3.619,4750.2,4750.1,0.3002]
[1755959747399,3.619,4750.2,4750.1,0.7455]
[1755959747899,6.619,4750.2,4750.1,0.3002]
[1755959748102,7.279,4750.2,4750.1,0.3002]
[1755959748688,9.38417451,4750.2,4750.1,0.3002]
[1755959748903,2.10529852,4750.0,4749.5,0.4563]
[1755959749214,3.0,4749.8,4749.5,0.4563]
[1755959749428,5.239,4749.9,4749.7,0.3007]
[1755959749730,0.16167301,4751.5,4749.8,0.4563]
[1755959749731,3.62,4750.3,4749.8,0.4563]
[1755959750030,3.62,4750.5,4750.2,0.3007]
[1755959750219,1.619,4751.0,4750.3,2.5614302]
[1755959750388,0.02,4751.8,4750.3,2.5614302]
[1755959750389,0.02,4751.8,4750.7,0.3007]
[1755959750584,0.652825,4750.8,4750.7,0.3007]
[1755959750779,0.1256,4750.8,4750.7,0.757]
[1755959750984,0.1256,4750.8,4750.7,2.86195295]
[1755959751216,0.02,4750.8,4750.7,2.86195295]
[1755959751518,0.02,4750.8,4750.7,3.36921059]
[1755959752678,0.02,4750.8,4750.7,6.36921059]
[1755959753116,0.02,4751.8,4751.7,2.10450996]
[1755959753316,0.02,4751.8,4751.7,2.40520996]
[1755959753501,0.02,4751.8,4751.7,2.96710996]
[1755959753702,0.02,4751.8,4751.7,1.53166895]
[1755959753915,0.02,4751.8,4751.7,0.3007]
[1755959754288,0.02,4751.8,4750.8,0.1056]
[1755959754520,0.1056,4751.3,4750.9,0.4563]
[1755959754693,0.1056,4751.3,4751.2,0.3007]
[1755959754883,0.1056,4751.3,4751.2,0.757]
[1755959755228,0.02,4751.8,4751.2,0.757]
[1755959755229,0.1056,4751.5,4751.2,2.86173143]
[1755959755528,0.1056,4751.7,4751.3,0.76322614]
[1755959755730,0.1056,4751.7,4751.6,0.3007]
[1755959755906,0.02,4751.8,4751.6,0.3007]
[1755959756098,0.02,4751.8,4751.0,0.4563]
[1755959756297,0.02,4751.8,4751.7,0.3007]
[1755959756497,0.02,4751.8,4751.0,0.4563]
[1755959756698,0.02,4751.8,4750.5,1.7246]
[1755959756699,0.1056,4751.1,4750.6,0.4563]
[1755959756913,0.1056,4751.1,4751.0,0.3007]
[1755959757827,0.1056,4751.1,4750.2,0.4563]
[1755959758001,0.1056,4750.7,4750.3,2.10512897]
[1755959758201,0.1056,4750.7,4750.6,0.3007]
[1755959758518,0.1056,4750.7,4750.6,2.64628016]
[1755959758688,0.1056,4750.7,4750.6,2.86199726]
[1755959760056,0.1056,4750.7,4750.6,0.3007]
[1755959760236,0.1056,4750.7,4750.6,2.86199726]
[1755959760527,0.1056,4751.1,4751.0,2.10482003]
[1755959760729,0.1076,4751.3,4751.2,2.10473143]
[1755959760895,0.002,4751.3,4751.2,2.10473143]
[1755959761090,0.002,4751.3,4751.2,2.86173143]
[1755959761497,0.002,4751.3,4751.2,2.96733143]
[1755959761718,0.002,4751.3,4751.2,3.47454658]
[1755959762198,0.002,4751.3,4751.2,3.01824658]
[1755959762436,0.002,4751.3,4751.2,0.4063]
[1755959762598,0.002,4751.3,4750.7,3.72394471]
[1755959762793,0.1056,4750.9,4750.7,3.72394471]
[1755959763000,0.1056,4750.9,4750.8,0.3007]
[1755959763421,0.1056,4750.9,4750.8,2.86190864]
[1755959763761,0.002,4751.3,4751.2,2.10473143]
[1755959763960,0.1056,4751.2,4751.0,2.10477577]
[1755959764106,0.1056,4751.2,4751.1,0.757]
[1755959764612,0.1056,4751.2,4750.8,0.49668912]
[1755959764813,0.1056,4750.9,4750.6,2.10499035]
[1755959765236,0.1056,4750.9,4750.8,2.40560864]
[1755959766145,0.1056,4750.9,4750.8,0.3007]
[1755959766311,0.1056,4750.9,4750.8,2.40560864]
[1755959766637,0.1056,4750.9,4750.8,3.31296887]
[1755959767143,0.1056,4751.1,4751.0,2.10482003]
[1755959767440,0.1056,4751.1,4751.0,2.86182003]
[1755959768032,0.1056,4751.1,4751.0,3.40359732]
[1755959768611,0.002,4751.3,4751.0,3.40359732]
[1755959768812,0.1076,4751.3,4751.0,0.84247729]
[1755959769139,0.1076,4751.3,4751.1,2.10477275]
[1755959769445,0.1076,4751.3,4751.2,0.3007]
[1755959770144,0.1076,4751.3,4750.8,0.02]
[1755959770451,0.1076,4751.3,4750.8,2.12490086]
[1755959770659,0.1076,4751.3,4750.8,0.02]
[1755959770856,0.002,4751.3,4750.8,0.02]
[1755959771020,0.4036,4750.9,4750.8,0.02]
[1755959771227,0.1056,4750.9,4750.8,2.42560864]
[1755959771413,0.1056,4751.0,4750.9,2.10482473]
[1755959771751,0.1056,4751.0,4750.8,0.02]
[1755959771952,0.4036,4751.0,4750.8,0.02]
[1755959772433,0.1056,4751.0,4750.8,0.02]
[1755959772832,0.7569,4750.9,4750.8,0.02]
[1755959773240,1.20710427,4750.9,4750.8,0.02]
[1755959773948,1.20710427,4750.9,4750.0,2.10526222]
[1755959774258,0.56548505,4750.6,4749.8,0.02]
[1755959774552,0.45020427,4750.5,4750.1,0.001]
[1755959774737,0.1056,4750.6,4750.5,2.10504157]
[1755959774918,0.1056,4750.6,4750.5,2.86204157]
[1755959775543,0.45020427,4751.2,4750.9,2.10483888]
[1755959775761,0.55580427,4751.1,4751.0,2.10482003]
[1755959775942,0.55580427,4751.1,4750.5,0.4563]
[1755959776118,0.45020427,4751.0,4750.4,0.1056]
[1755959776323,0.56548505,4751.2,4750.4,0.1056]
[1755959776324,0.45020427,4750.9,4750.4,0.37256]
[1755959776643,0.55580427,4751.1,4751.0,2.10482003]
[1755959776959,0.1056,4751.1,4751.0,2.40552003]
[1755959777750,0.4036,4751.1,4750.4,0.37256]
[1755959777926,0.1056,4750.7,4750.1,0.001]
[1755959778124,0.1056,4750.7,4750.4,2.10506652]
[1755959778656,1.01140427,4750.7,4750.3,2.10511247]
[1755959778854,0.90580427,4750.6,4750.1,0.001]
[1755959779056,0.1056,4750.3,4750.1,0.001]
[1755959779225,0.45020427,4750.2,4750.1,0.001]
[1755959779553,0.1056,4750.3,4750.2,2.39027451]
[1755959780458,0.1056,4750.3,4750.2,2.84192384]
[1755959780629,0.45020427,4750.7,4750.6,2.10499726]
[1755959781036,0.55580427,4750.7,4750.6,2.10499726]
[1755959781232,0.1056,4750.7,4750.6,2.10499726]
[1755959781432,0.1056,4750.7,4750.1,0.001]
[1755959781955,0.1056,4750.7,4750.4,2.10508292]
[1755959782161,0.002,4750.8,4750.1,0.001]
[1755959782162,0.2893,4750.5,4750.1,0.001]
[1755959782334,0.1056,4750.4,4750.1,2.10617814]
[1755959782666,0.2893,4750.2,4750.1,0.001]
[1755959783236,0.7449,4750.2,4750.1,0.001]
[1755959784664,2.3629,4750.2,4750.1,0.001]
[1755959784863,2.8173315,4750.2,4750.1,0.001]
[1755959785028,5.9017195,4750.2,4750.1,0.001]
[1755959785229,8.57459627,4750.2,4750.1,0.001]
[1755959785562,6.46942176,4750.2,4750.1,0.001]
[1755959786060,8.57459627,4750.2,4750.1,0.001]
[1755959786262,8.00689401,4750.2,4750.1,0.001]
[1755959786477,8.66689401,4750.2,4750.1,0.001]
[1755959786648,9.23459627,4750.2,4750.1,0.001]
[1755959787007,8.86392603,4750.2,4750.1,0.001]
[1755959787340,9.23406083,4750.2,4750.1,0.001]
[1755959788067,7.12888632,4750.2,4750.1,0.001]
[1755959788273,10.1757195,4750.2,4750.1,0.001]
[1755959788478,12.28089401,4750.2,4750.1,0.001]
[1755959788773,10.1757195,4750.2,4750.1,0.001]
[1755959789340,12.28089401,4750.2,4750.1,0.001]
[1755959789843,13.04483931,4750.2,4750.1,0.001]
[1755959790271,12.28089401,4750.2,4750.1,0.001]
[1755959790666,10.1737195,4750.2,4750.1,0.001]
[1755959791178,12.27889401,4750.2,4750.1,0.001]
[1755959791759,12.47558369,4750.2,4750.1,0.001]
[1755959792075,12.27889401,4750.2,4750.1,0.001]
[1755959793382,12.47552681,4750.2,4750.1,0.001]
[1755959794286,9.08624586,4750.2,4750.1,0.001]
[1755959794461,12.69824586,4750.2,4750.1,0.001]
[1755959795763,2.76539613,4749.7,4749.6,0.001]
[1755959796066,10.5412777,4749.7,4749.6,0.001]
[1755959796458,34.43330339,4749.7,4749.6,1e-08]
[1755959796755,2.76561778,4749.2,4749.1,0.001]
[1755959797069,12.79692047,4749.2,4749.1,0.001]
[1755959797384,12.49818208,4749.2,4749.1,0.001]
[1755959797773,12.82773521,4749.2,4749.1,0.001]
[1755959798288,12.49818208,4749.2,4749.1,0.001]
[1755959798484,8.88618208,4749.2,4749.1,0.001]
[1755959798674,12.58361608,4749.2,4749.1,0.001]
[1755959798876,8.97023805,4749.2,4749.1,0.001]
[1755959799080,12.58323805,4749.2,4749.1,0.001]
[1755959799276,12.58223805,4749.2,4749.1,0.001]
[1755959799475,12.5821697,4749.2,4749.1,0.001]
[1755959799680,8.9701697,4749.2,4749.1,0.001]
[1755959799889,2.7657508,4748.9,4748.3,0.001]
[1755959800191,9.96783722,4748.9,4748.3,0.001]
[1755959800388,10.42226872,4748.9,4748.3,0.001]
[1755959800591,10.87786872,4748.9,4748.3,0.001]
[1755959801168,7.26686872,4748.9,4748.3,0.001]
[1755959801357,10.87786872,4748.9,4748.3,0.001]
[1755959801566,11.20745313,4748.9,4748.3,0.001]
[1755959802096,6.48085313,4748.9,4748.3,0.001]
[1755959802271,10.16999398,4748.9,4748.3,0.001]
[1755959802473,5.15961591,4748.9,4748.3,0.001]
[1755959802705,7.26536671,4748.9,4748.3,0.001]
[1755959802862,10.26536671,4748.9,4748.3,0.001]
[1755959803489,6.94466671,4748.9,4748.3,0.001]
[1755959803656,10.26636671,4748.9,4748.3,0.001]
[1755959803862,10.55566671,4748.9,4748.3,0.001]
[1755959804393,11.01126671,4748.9,4748.3,0.001]
[1755959805292,11.57589398,4748.9,4748.3,0.001]
[1755959805992,7.96489398,4748.9,4748.3,0.001]
[1755959806296,7.68071836,4748.9,4748.3,0.001]
[1755959806667,11.28971836,4748.9,4748.3,0.001]
[1755959807721,11.09369971,4748.9,4748.3,0.001]
[1755959808397,1.926,4748.7,4748.3,0.001]
[1755959808581,7.32507253,4748.4,4748.3,0.001]
[1755959808783,11.5846926,4748.4,4748.3,0.001]
[1755959808989,12.1298446,4748.4,4748.3,0.001]
[1755959809296,12.1298446,4748.4,4747.3,0.001]
[1755959809297,2.76619431,4747.9,4747.3,0.001]
[1755959809508,11.28829431,4747.9,4747.3,0.001]
[1755959809713,12.20342581,4747.9,4747.3,0.001]
[1755959810270,13.15312435,4747.9,4747.3,0.001]
[1755959810600,12.39965767,4747.9,4747.3,0.001]
[1755959811020,28.87329591,4747.4,4747.3,0.001]
[1755959811174,28.87329591,4747.4,4747.3,1e-08]
[1755959811175,34.69305927,4747.4,4747.3,1e-08]
[1755959811370,6.82799696,4747.4,4747.3,1e-08]
[1755959811573,10.3251795,4747.4,4747.3,1e-08]
[1755959811908,11.31777705,4747.4,4747.3,1e-08]
[1755959812514,5.76663801,4746.9,4745.8,0.02]
[1755959812825,11.75116951,4746.9,4745.8,0.02]
[1755959812968,11.45806951,4746.9,4745.8,0.02]
[1755959813281,11.78777839,4746.9,4746.1,0.4374]
[1755959813709,12.08087839,4746.9,4745.8,0.02]
[1755959814022,6.02214038,4746.9,4746.8,0.3299]
[1755959814228,3.622,4746.9,4746.8,0.3299]
[1755959814517,4.282,4746.9,4746.8,0.7673]
[1755959815313,0.66,4746.9,4746.8,0.7673]
[1755959815517,4.285,4746.9,4746.8,0.7673]
[1755959816009,0.66,4746.9,4746.8,0.7673]
[1755959816316,4.285,4746.9,4746.8,0.7673]
[1755959816683,3.625,4746.9,4746.8,0.7673]
[1755959816995,0.66,4747.3,4746.8,0.7673]
[1755959817194,3.0,4747.1,4746.9,0.4374]
[1755959817379,3.66,4747.3,4747.0,0.7463]
[1755959817576,6.624,4747.2,4747.1,0.4374]
[1755959817775,6.624,4747.2,4747.1,0.3089]
[1755959818299,6.7296,4747.2,4747.1,0.3089]
[1755959818495,0.66,4747.0,4746.8,0.021]
[1755959818798,6.49623801,4746.9,4746.8,0.021]
[1755959818998,6.49623801,4746.9,4746.8,0.3299]
[1755959819298,9.49623801,4746.9,4746.8,0.3299]
[1755959819505,9.93363801,4746.9,4746.8,0.3299]
[1755959820286,3.543,4746.9,4746.8,0.7673]
[1755959820498,7.173,4746.9,4746.8,0.7673]
[1755959820702,3.543,4746.9,4746.8,0.7673]
[1755959820899,4.172,4746.9,4746.8,0.7673]
[1755959821277,4.172,4746.9,4746.8,0.3299]
[1755959821618,6.93863801,4746.9,4746.8,0.3299]
[1755959821780,10.23173801,4746.9,4746.8,0.021]
[1755959822108,10.5051948,4746.9,4746.8,0.021]
[1755959822314,9.93863801,4746.9,4746.8,0.021]
[1755959822898,4.203,4746.9,4746.8,0.021]
[1755959823510,9.93763801,4746.9,4746.8,0.3299]
[1755959823814,10.23073801,4746.9,4746.8,0.021]
[1755959824387,10.98441216,4746.9,4746.8,0.021]
[1755959824847,8.87777415,4746.9,4746.8,0.021]
[1755959824999,10.69131216,4746.9,4746.8,0.021]
[1755959825339,9.93763801,4746.9,4746.8,0.021]
[1755959825808,10.23073801,4746.9,4746.8,0.021]
[1755959826201,10.68473031,4746.9,4746.8,0.021]
[1755959826732,11.34249445,4746.9,4746.8,0.021]
[1755959826900,11.34260656,4746.9,4746.8,0.021]
[1755959828390,10.88190656,4746.9,4746.8,0.021]
[1755959829934,11.34260656,4746.9,4746.8,0.021]
[1755959832115,11.50311892,4746.9,4746.8,0.021]
[1755959832515,12.30841892,4746.9,4746.8,0.021]
[1755959832715,12.76911892,4746.9,4746.8,0.021]
[1755959833316,12.88743444,4746.9,4746.8,0.021]
[1755959833516,8.50563444,4746.9,4746.8,0.021]
[1755959833731,12.41673444,4746.9,4746.8,0.021]
[1755959833921,12.87743444,4746.9,4746.8,0.021]
[1755959834428,12.87743444,4746.9,4746.3,0.001]
[1755959834429,2.76685993,4746.4,4746.3,0.001]
[1755959834606,8.65402848,4746.4,4746.3,0.001]
[1755959834940,12.40782848,4746.4,4746.3,0.001]
[1755959835107,13.39891194,4746.4,4746.3,0.001]
[1755959835432,12.64511194,4746.4,4746.3,0.001]
[1755959835641,13.66356439,4746.4,4746.3,0.3099]
[1755959835811,12.52699927,4746.4,4746.3,0.3099]
[1755959835997,6.14413934,4746.4,4746.3,0.3099]
[1755959836339,9.56180818,4746.4,4746.3,0.7473]
[1755959836636,12.32866811,4746.4,4746.3,0.3099]
[1755959837004,13.08622489,4746.4,4746.3,0.3099]
[1755959837331,13.2836358,4746.4,4746.3,0.3099]
[1755959837637,9.89209408,4746.4,4746.3,0.3099]
[1755959837835,11.99895401,4746.4,4746.3,0.3099]
[1755959838330,11.99895401,4746.4,4746.3,0.001]
[1755959838331,12.95396386,4746.4,4746.3,0.001]
[1755959838700,12.95396386,4746.4,4746.3,0.3099]
[1755959838905,12.95397034,4746.4,4746.3,0.3099]
[1755959839237,11.99895401,4746.4,4746.3,0.3099]
[1755959839443,12.19643094,4746.4,4746.3,0.3099]
[1755959839906,12.19643094,4746.4,4746.3,0.001]
[1755959840234,12.95398772,4746.4,4746.3,0.001]
[1755959840438,12.19643094,4746.4,4746.3,0.001]
[1755959840740,13.24448772,4746.4,4746.3,0.001]
[1755959840941,10.53476602,4746.4,4746.3,0.2991]
[1755959841141,10.41627334,4746.4,4746.3,0.2991]
[1755959841434,10.21879641,4746.4,4746.3,0.2991]
[1755959841645,10.21968885,4746.4,4746.3,0.2991]
[1755959842740,10.4172006,4746.4,4746.3,0.2991]
[1755959842947,12.52406053,4746.4,4746.3,0.2991]
[1755959843346,10.4172006,4746.4,4746.3,0.2991]
[1755959843641,13.0929034,4746.4,4746.3,0.2991]
[1755959844423,10.98604347,4746.4,4746.3,0.2991]
[1755959844627,13.0929034,4746.4,4746.3,0.2991]
[1755959845046,13.09293424,4746.4,4746.3,0.2991]
[1755959845264,10.98607752,4746.4,4746.3,0.2991]
[1755959845913,10.98608961,4746.4,4746.3,0.2991]
[1755959846314,10.41724674,4746.4,4746.3,0.2991]
[1755959846619,13.09294954,4746.4,4746.3,0.2991]
[1755959848018,10.98608961,4746.4,4746.3,0.2991]
[1755959848217,10.78853172,4746.4,4746.3,0.2991]
[1755959848415,13.09303566,4746.4,4746.3,0.2991]
[1755959849337,13.09338048,4746.4,4746.3,0.2991]
[1755959850923,12.76367815,4746.4,4746.3,0.2991]
[1755959851140,12.19449046,4746.4,4746.3,0.2991]
[1755959853050,10.08763053,4746.4,4746.3,0.2991]
[1755959853850,12.19449046,4746.4,4746.3,0.2991]
[1755959854749,12.19461431,4746.4,4746.3,0.2991]
[1755959854942,9.88998652,4746.4,4746.3,0.2991]
[1755959855139,12.19461729,4746.4,4746.3,0.2991]
[1755959855350,12.48511729,4746.4,4746.3,0.001]
[1755959855665,13.07349284,4746.4,4746.3,0.001]
[1755959855848,20.07349284,4746.4,4746.3,0.001]
[1755959856045,13.59443291,4746.4,4746.3,0.001]
[1755959856246,17.95791116,4746.4,4746.3,0.001]
[1755959856446,17.95791116,4746.4,4746.3,0.2991]
[1755959856631,14.35391116,4746.4,4746.3,0.2991]
[1755959856834,2.61798652,4746.4,4746.3,0.7343]
[1755959857149,5.3296,4746.4,4746.3,1.01842855]
[1755959857354,5.3296,4746.4,4746.3,0.2991]
[1755959857355,5.98234536,4746.4,4746.3,0.2991]
[1755959857556,2.37834536,4746.4,4746.3,0.2991]
[1755959857733,5.3416,4746.4,4746.3,0.7343]
[1755959858056,5.79658652,4746.4,4746.3,0.7343]
[1755959858359,0.56058652,4746.4,4746.3,1.01843363]
[1755959858526,3.616,4746.5,4746.4,2.10681766]
[1755959858726,3.616,4746.5,4746.4,0.7333]
[1755959859153,3.617,4746.6,4746.4,0.2981]
[1755959859349,2.10685993,4746.4,4746.3,0.001]
[1755959859552,6.90789173,4746.4,4746.3,0.001]
[1755959859755,7.49620207,4746.4,4746.3,0.001]
[1755959859958,8.25568032,4746.4,4746.3,0.001]
[1755959860132,7.49620207,4746.4,4746.3,0.001]
[1755959860559,7.2985169,4746.4,4746.3,0.001]
[1755959860764,9.70108202,4746.4,4746.3,0.001]
[1755959861556,7.2641548,4746.4,4746.3,0.001]
[1755959861755,8.58538666,4746.4,4746.3,0.001]
[1755959861971,7.70818453,4746.4,4746.3,0.001]
[1755959862338,10.57524446,4746.4,4746.3,0.001]
[1755959862574,12.11240938,4746.4,4746.3,0.001]
[1755959863436,0.66,4746.0,4744.8,2.12756435]
[1755959863635,3.0,4745.8,4744.9,2.10752597]
[1755959863861,0.1056,4745.0,4744.8,0.23275644]
[1755959864070,0.1056,4745.0,4744.9,0.2981]
[1755959864958,0.1056,4745.0,4744.9,2.40562597]
[1755959865270,0.1056,4745.0,4744.9,0.2981]
[1755959865460,0.1056,4745.0,4744.9,0.7134]
[1755959866440,3.7266,4745.0,4744.9,0.2981]
[1755959866861,0.1056,4745.0,4744.9,0.9975058]
[1755959867091,0.1056,4745.0,4744.9,2.82092597]
[1755959867375,0.1056,4745.0,4744.9,0.7134]
[1755959868056,0.1056,4745.0,4744.9,2.82092597]
[1755959870288,0.1056,4745.0,4744.9,2.40562597]
[1755959870588,0.1056,4745.0,4744.9,2.82092597]
[1755959870886,0.1056,4745.0,4744.9,3.31577845]
[1755959871381,0.1056,4745.4,4744.9,1.20825248]
[1755959871592,0.1056,4745.4,4745.3,2.10734832]
[1755959871884,0.1056,4745.4,4745.3,2.40154832]
[1755959872093,0.1056,4745.4,4745.3,3.35876083]
[1755959872253,0.1056,4745.4,4745.3,2.94346083]
[1755959872454,0.1056,4745.4,4745.3,3.35876083]
[1755959873173,0.1056,4745.4,4745.3,2.94346083]
[1755959875049,0.1056,4745.4,4745.3,0.2942]
[1755959875650,0.1056,4745.4,4744.8,2.12756066]
[1755959875855,0.1056,4744.9,4744.8,0.02]
[1755959876069,0.1056,4744.9,4744.8,2.42177039]
[1755959876382,0.1056,4744.9,4744.8,0.3142]
[1755959877583,0.8323,4744.9,4744.8,0.02]
[1755959878182,0.3913,4744.9,4744.8,0.02]
[1755959878362,0.1056,4744.9,4744.8,0.02]
[1755959878758,0.1056,4744.9,4744.8,0.3142]
[1755959879688,0.1056,4744.9,4744.8,0.3152]
[1755959880184,0.1056,4744.9,4744.8,0.76835522]